[Event "15e Open International de Quenza"]
[Site "Quenza"]
[Date "2026.07.05"]
[Round "3.12"]
[White "TREGUBOV, Pavel V."]
[Black "THIBOUS, Mathis"]
[Result "0-1"]
[TimeControl "5min+3s"]
[WhiteTitle "GM"]
[BlackTitle "-"]
[WhiteFideId "-"]
[BlackFideId "-"]
[WhiteElo "2391"]
[BlackElo "2003"]

1. e4 {[%clk 00:05:03]} g6 {[%clk 00:05:03]} {[%emt 00:00:01]} 2. d4 {[%clk
00:05:03]} Bg7 {[%clk 00:05:03]} 3. Nf3 {[%clk 00:05:03]} {[%emt 00:00:02]} d6
{[%clk 00:05:03]} 4. Nc3 {[%clk 00:05:03]} {[%emt 00:00:02]} a6 {[%clk
00:05:03]} 5. Be2 {[%clk 00:05:03]} {[%emt 00:00:03]} b5 {[%clk 00:05:03]}
{[%emt 00:00:02]} 6. O-O {[%clk 00:04:57]} {[%emt 00:00:09]} Bb7 {[%clk
00:05:03]} 7. Re1 {[%clk 00:04:57]} {[%emt 00:00:03]} Nd7 {[%clk 00:05:02]}
{[%emt 00:00:05]} 8. Bf1 {[%clk 00:04:55]} {[%emt 00:00:04]} e6 {[%clk
00:05:02]} {[%emt 00:00:03]} 9. d5 {[%clk 00:04:47]} {[%emt 00:00:11]} e5
{[%clk 00:05:02]} {[%emt 00:00:02]} 10. a4 {[%clk 00:04:44]} {[%emt 00:00:06]}
b4 {[%clk 00:05:02]} {[%emt 00:00:02]} 11. Na2 {[%clk 00:04:44]} {[%emt
00:00:02]} a5 {[%clk 00:05:02]} 12. c3 {[%clk 00:04:44]} {[%emt 00:00:01]} bxc3
{[%clk 00:05:02]} {[%emt 00:00:01]} 13. Nxc3 {[%clk 00:04:40]} {[%emt
00:00:07]} Ne7 {[%clk 00:05:00]} {[%emt 00:00:05]} 14. Rb1 {[%clk 00:04:24]}
{[%emt 00:00:19]} O-O {[%clk 00:04:58]} {[%emt 00:00:04]} 15. b4 {[%clk
00:04:24]} {[%emt 00:00:03]} axb4 16. Rxb4 {[%clk 00:04:24]} Ba6 {[%clk
00:04:58]} 17. Bb5 {[%clk 00:04:16]} {[%emt 00:00:10]} h6 {[%clk 00:04:04]}
{[%emt 00:00:56]} 18. Qe2 {[%clk 00:03:29]} {[%emt 00:00:51]} Bxb5 {[%clk
00:04:04]} {[%emt 00:00:02]} 19. Nxb5 {[%clk 00:03:29]} {[%emt 00:00:03]} Nc5
{[%clk 00:04:00]} {[%emt 00:00:07]} 20. Qc4 {[%clk 00:03:10]} {[%emt 00:00:22]}
c6 {[%clk 00:03:52]} {[%emt 00:00:10]} 21. Nc3 {[%clk 00:02:56]} {[%emt
00:00:17]} cxd5 {[%clk 00:03:27]} {[%emt 00:00:28]} 22. exd5 {[%clk 00:02:56]}
{[%emt 00:00:02]} Qd7 {[%clk 00:02:48]} {[%emt 00:00:41]} 23. Be3 {[%clk
00:02:16]} {[%emt 00:00:43]} Rfc8 {[%clk 00:02:48]} {[%emt 00:00:02]} 24. Bxc5
{[%clk 00:02:13]} {[%emt 00:00:06]} Rxc5 {[%clk 00:02:48]} {[%emt 00:00:02]} 25.
Qb3 {[%clk 00:02:12]} {[%emt 00:00:03]} Rxc3 {[%clk 00:02:45]} {[%emt
00:00:07]} 26. Qxc3 {[%clk 00:02:12]} Nxd5 {[%clk 00:02:45]} {[%emt 00:00:01]}
27. Nxe5 {[%clk 00:01:34]} {[%emt 00:00:42]} Bxe5 {[%clk 00:02:12]} {[%emt
00:00:36]} 28. Qf3 {[%clk 00:01:34]} Qc6 {[%clk 00:01:23]} {[%emt 00:00:53]} 29.
Rbe4 {[%clk 00:01:21]} {[%emt 00:00:16]} Kg7 {[%clk 00:00:50]} {[%emt
00:00:36]} 30. Qb3 {[%clk 00:01:09]} {[%emt 00:00:15]} Nf6 {[%clk 00:00:37]}
{[%emt 00:00:16]} 31. Rc4 {[%clk 00:01:09]} {[%emt 00:00:03]} Qd5 {[%clk
00:00:37]} {[%emt 00:00:01]} 32. g3 {[%clk 00:01:09]} {[%emt 00:00:04]} h5
{[%clk 00:00:37]} 33. Qb5 {[%clk 00:01:06]} {[%emt 00:00:07]} Qd2 {[%clk
00:00:34]} {[%emt 00:00:05]} 34. Rb1 {[%clk 00:00:54]} {[%emt 00:00:16]} h4
{[%clk 00:00:34]} {[%emt 00:00:01]} 35. Rxh4 {[%clk 00:00:54]} {[%emt
00:00:03]} Bd4 {[%clk 00:00:21]} {[%emt 00:00:16]} 36. Rf4 {[%clk 00:00:47]}
{[%emt 00:00:09]} Be5 {[%clk 00:00:21]} {[%emt 00:00:01]} 37. Rf3 {[%clk
00:00:42]} {[%emt 00:00:08]} Ra5 {[%clk 00:00:17]} {[%emt 00:00:07]} 38. Qd3
{[%clk 00:00:41]} {[%emt 00:00:04]} Qxd3 {[%clk 00:00:17]} {[%emt 00:00:01]} 39.
Rxd3 Rxa4 40. f4 {[%clk 00:00:39]} {[%emt 00:00:04]} Bd4+ {[%clk 00:00:17]} 41.
Kg2 {[%clk 00:00:39]} Bc5 {[%clk 00:00:17]} 42. Kf3 {[%clk 00:00:39]} {[%emt
00:00:05]} Ra2 {[%clk 00:00:17]} 43. g4 {[%clk 00:00:38]} {[%emt 00:00:04]}
Rxh2 {[%clk 00:00:17]} {[%emt 00:00:02]} 44. g5 {[%clk 00:00:36]} {[%emt
00:00:05]} Nh5 {[%clk 00:00:12]} {[%emt 00:00:08]} 45. Rf1 {[%clk 00:00:25]}
{[%emt 00:00:14]} Rh3+ {[%clk 00:00:12]} 46. Ke4 {[%clk 00:00:20]} {[%emt
00:00:09]} Rxd3 {[%clk 00:00:10]} {[%emt 00:00:05]} 47. Kxd3 f6 48. Ke4 {[%clk
00:00:19]} {[%emt 00:00:02]} Ng3+ {[%clk 00:00:10]} {[%emt 00:00:04]} 0-1

[Event "15e Open International de Quenza"]
[Site "Quenza"]
[Date "2026.07.05"]
[Round "3.7"]
[White "TERNAULT, Mathieu"]
[Black "PAKLEZA, Zbigniew"]
[Result "0-1"]
[TimeControl "5min+3s"]
[WhiteTitle "FM"]
[BlackTitle "GM"]
[WhiteFideId "-"]
[BlackFideId "-"]
[WhiteElo "2188"]
[BlackElo "2453"]

1. d4 {[%clk 00:05:03]} {[%emt 00:00:02]} d6 {[%clk 00:05:03]} 2. Nf3 {[%clk
00:05:03]} {[%emt 00:00:02]} Bg4 {[%clk 00:05:03]} {[%emt 00:00:01]} 3. e3
{[%clk 00:04:57]} {[%emt 00:00:10]} Nd7 {[%clk 00:05:01]} {[%emt 00:00:06]} 4.
h3 {[%clk 00:04:57]} Bh5 {[%clk 00:05:01]} {[%emt 00:00:02]} 5. Be2 {[%clk
00:04:56]} {[%emt 00:00:04]} Ngf6 {[%clk 00:05:01]} {[%emt 00:00:02]} 6. c4
{[%emt 00:00:02]} c6 7. Nc3 {[%clk 00:04:56]} e5 {[%clk 00:05:01]} {[%emt
00:00:02]} 8. dxe5 {[%clk 00:04:22]} {[%emt 00:00:37]} dxe5 {[%clk 00:05:01]} 9.
O-O {[%clk 00:04:11]} {[%emt 00:00:14]} Be7 {[%clk 00:05:01]} {[%emt 00:00:02]}
10. Nh4 {[%clk 00:04:07]} {[%emt 00:00:06]} Bxe2 {[%clk 00:04:53]} {[%emt
00:00:11]} 11. Qxe2 {[%clk 00:04:06]} {[%emt 00:00:04]} g6 {[%clk 00:04:53]}
{[%emt 00:00:02]} 12. Rd1 {[%clk 00:04:05]} {[%emt 00:00:04]} O-O {[%clk
00:04:53]} {[%emt 00:00:04]} 13. b3 {[%clk 00:03:47]} {[%emt 00:00:21]} Qc7
{[%clk 00:04:53]} {[%emt 00:00:01]} 14. Qc2 {[%clk 00:03:17]} {[%emt 00:00:33]}
Rfe8 {[%clk 00:04:44]} {[%emt 00:00:12]} 15. Nf3 {[%clk 00:03:07]} {[%emt
00:00:13]} Bf8 {[%clk 00:04:44]} {[%emt 00:00:01]} 16. Ng5 {[%clk 00:03:05]}
{[%emt 00:00:05]} Rad8 {[%clk 00:04:04]} {[%emt 00:00:43]} 17. Bb2 {[%clk
00:02:59]} {[%emt 00:00:09]} Bg7 {[%clk 00:04:03]} {[%emt 00:00:04]} 18. Nge4
{[%clk 00:02:56]} {[%emt 00:00:06]} Nxe4 {[%clk 00:04:03]} {[%emt 00:00:02]} 19.
Nxe4 {[%clk 00:02:56]} {[%emt 00:00:01]} Nf8 {[%clk 00:03:53]} {[%emt
00:00:13]} 20. Rxd8 {[%clk 00:02:50]} {[%emt 00:00:09]} Rxd8 {[%clk 00:03:53]}
{[%emt 00:00:02]} 21. Rd1 {[%clk 00:02:50]} f5 {[%clk 00:03:53]} {[%emt
00:00:04]} 22. Nc5 {[%clk 00:02:48]} {[%emt 00:00:05]} b6 {[%clk 00:03:42]}
{[%emt 00:00:14]} 23. Na4 {[%clk 00:02:48]} Ne6 {[%clk 00:03:37]} {[%emt
00:00:08]} 24. h4 {[%clk 00:01:44]} {[%emt 00:01:06]} h5 {[%clk 00:03:36]}
{[%emt 00:00:04]} 25. Nc3 {[%clk 00:01:36]} {[%emt 00:00:11]} e4 {[%clk
00:03:26]} {[%emt 00:00:13]} 26. Na4 {[%clk 00:01:34]} {[%emt 00:00:05]} Bxb2
{[%clk 00:03:18]} {[%emt 00:00:11]} 27. Nxb2 {[%clk 00:01:34]} {[%emt
00:00:02]} Kf7 {[%clk 00:03:03]} {[%emt 00:00:18]} 28. Rxd8 {[%clk 00:01:31]}
{[%emt 00:00:05]} Qxd8 {[%clk 00:03:03]} {[%emt 00:00:02]} 29. Qc3 {[%clk
00:01:31]} Qxh4 {[%clk 00:03:00]} {[%emt 00:00:06]} 30. Na4 {[%clk 00:01:08]}
{[%emt 00:00:26]} Qf6 {[%clk 00:02:59]} {[%emt 00:00:04]} 31. Qd2 {[%clk
00:01:08]} {[%emt 00:00:01]} Qd8 {[%clk 00:02:06]} {[%emt 00:00:56]} 32. Qc3
{[%clk 00:01:03]} {[%emt 00:00:08]} h4 {[%clk 00:01:38]} {[%emt 00:00:31]} 33.
Qe5 {[%clk 00:01:00]} {[%emt 00:00:06]} h3 {[%clk 00:01:21]} {[%emt 00:00:21]}
34. gxh3 {[%clk 00:00:54]} {[%emt 00:00:09]} Ng5 {[%clk 00:01:21]} 35. Kg2
{[%clk 00:00:54]} {[%emt 00:00:03]} Nf3 {[%clk 00:01:21]} {[%emt 00:00:01]} 36.
Qf4 {[%clk 00:00:43]} {[%emt 00:00:14]} Qd1 {[%clk 00:01:19]} {[%emt 00:00:04]}
37. Qc7+ {[%clk 00:00:40]} {[%emt 00:00:06]} Kg8 {[%clk 00:01:19]} {[%emt
00:00:01]} 38. Qb8+ {[%clk 00:00:38]} {[%emt 00:00:05]} Kh7 {[%clk 00:01:19]}
{[%emt 00:00:01]} 39. Qc7+ {[%clk 00:00:08]} {[%emt 00:00:34]} Kh6 {[%clk
00:01:19]} {[%emt 00:00:02]} 40. Kg3 {[%clk 00:00:06]} {[%emt 00:00:06]} Qg1+
{[%clk 00:01:17]} {[%emt 00:00:04]} 41. Kf4 {[%clk 00:00:06]} {[%emt 00:00:01]}
Qh2# {[%emt 00:00:02]} 0-1

[Event "15e Open International de Quenza"]
[Site "Quenza"]
[Date "2026.07.05"]
[Round "3.14"]
[White "RATIER-FONTANA, Matteo"]
[Black "SABIANI, Chjara"]
[Result "1-0"]
[TimeControl "5min+3s"]
[WhiteTitle "-"]
[BlackTitle "-"]
[WhiteFideId "-"]
[BlackFideId "-"]
[WhiteElo "2368"]
[BlackElo "1881"]

1. Nf3 {[%clk 00:05:03]} {[%emt 00:00:39]} Nf6 {[%clk 00:05:03]} {[%emt
00:00:01]} 2. d4 {[%clk 00:05:03]} {[%emt 00:00:01]} g6 {[%clk 00:04:58]}
{[%emt 00:00:09]} 3. Bf4 {[%clk 00:05:03]} Bg7 {[%clk 00:04:58]} {[%emt
00:00:01]} 4. e3 {[%clk 00:05:03]} O-O {[%clk 00:04:58]} {[%emt 00:00:01]} 5.
Be2 {[%clk 00:05:03]} {[%emt 00:00:01]} c5 {[%clk 00:04:58]} 6. O-O {[%clk
00:05:03]} {[%emt 00:00:03]} d5 {[%clk 00:04:58]} {[%emt 00:00:03]} 7. Nbd2
{[%clk 00:04:53]} {[%emt 00:00:13]} Nc6 {[%clk 00:04:58]} {[%emt 00:00:02]} 8.
c3 {[%clk 00:04:49]} {[%emt 00:00:07]} c4 {[%clk 00:04:50]} {[%emt 00:00:11]} 9.
Ne5 {[%clk 00:04:41]} {[%emt 00:00:10]} Nxe5 {[%clk 00:04:32]} {[%emt
00:00:21]} 10. Bxe5 {[%clk 00:04:41]} {[%emt 00:00:02]} Bf5 {[%clk 00:04:23]}
{[%emt 00:00:11]} 11. Bf3 {[%clk 00:04:14]} {[%emt 00:00:30]} Qd7 {[%clk
00:04:12]} {[%emt 00:00:14]} 12. Bxf6 {[%clk 00:04:10]} {[%emt 00:00:07]} Bxf6
{[%clk 00:04:11]} {[%emt 00:00:04]} 13. e4 {[%clk 00:04:10]} {[%emt 00:00:02]}
dxe4 {[%clk 00:04:09]} {[%emt 00:00:05]} 14. Bxe4 {[%clk 00:04:08]} {[%emt
00:00:05]} Rac8 {[%clk 00:04:00]} {[%emt 00:00:12]} 15. Qe2 {[%clk 00:04:01]}
{[%emt 00:00:10]} b5 {[%clk 00:03:58]} {[%emt 00:00:05]} 16. Bxf5 {[%clk
00:03:57]} {[%emt 00:00:07]} Qxf5 {[%clk 00:03:58]} {[%emt 00:00:01]} 17. Rfe1
{[%clk 00:03:37]} {[%emt 00:00:23]} Rfe8 {[%clk 00:03:34]} {[%emt 00:00:28]} 18.
Nf3 {[%clk 00:03:36]} {[%emt 00:00:04]} a5 {[%clk 00:03:01]} {[%emt 00:00:36]}
19. Rad1 {[%clk 00:03:33]} {[%emt 00:00:06]} b4 {[%clk 00:02:56]} {[%emt
00:00:09]} 20. h3 {[%clk 00:03:33]} {[%emt 00:00:03]} Qb5 {[%clk 00:02:33]}
{[%emt 00:00:25]} 21. Ne5 {[%clk 00:03:17]} {[%emt 00:00:18]} Bxe5 {[%clk
00:01:49]} {[%emt 00:00:48]} 22. Qxe5 {[%clk 00:02:58]} {[%emt 00:00:22]} Qa4
{[%clk 00:01:47]} {[%emt 00:00:05]} 23. Ra1 {[%clk 00:01:59]} {[%emt 00:01:02]}
bxc3 {[%clk 00:01:47]} 24. bxc3 {[%clk 00:01:59]} Qa3 {[%clk 00:01:46]} {[%emt
00:00:04]} 25. d5 {[%clk 00:01:46]} {[%emt 00:00:16]} Red8 {[%clk 00:01:22]}
{[%emt 00:00:27]} 26. h4 {[%clk 00:01:44]} {[%emt 00:00:05]} h5 {[%clk
00:01:16]} {[%emt 00:00:09]} 27. Rad1 {[%clk 00:01:36]} {[%emt 00:00:11]} Rd7
{[%clk 00:01:05]} {[%emt 00:00:14]} 28. Rd2 {[%clk 00:01:20]} {[%emt 00:00:19]}
Rcd8 {[%clk 00:01:05]} {[%emt 00:00:02]} 29. Red1 {[%clk 00:01:20]} Qc5 {[%clk
00:01:01]} {[%emt 00:00:06]} 30. Qe3 {[%clk 00:00:46]} {[%emt 00:00:38]} Qd6
{[%clk 00:00:53]} {[%emt 00:00:12]} 31. Qe4 {[%clk 00:00:40]} {[%emt 00:00:10]}
Qc5 {[%clk 00:00:44]} {[%emt 00:00:11]} 32. Rd4 {[%clk 00:00:35]} {[%emt
00:00:08]} Rc8 {[%clk 00:00:44]} {[%emt 00:00:01]} 33. g4 {[%clk 00:00:33]}
{[%emt 00:00:05]} hxg4 {[%clk 00:00:41]} {[%emt 00:00:07]} 34. Qxg4 {[%clk
00:00:33]} {[%emt 00:00:01]} Qd6 {[%clk 00:00:32]} {[%emt 00:00:11]} 35. Re1
{[%clk 00:00:27]} {[%emt 00:00:09]} Rc5 {[%clk 00:00:24]} {[%emt 00:00:11]} 36.
Red1 {[%clk 00:00:21]} {[%emt 00:00:10]} Kf8 {[%clk 00:00:16]} {[%emt
00:00:11]} 37. R1d2 {[%clk 00:00:21]} Rd8 {[%clk 00:00:16]} {[%emt 00:00:03]}
38. Kg2 {[%clk 00:00:14]} {[%emt 00:00:10]} Rxd5 {[%clk 00:00:10]} {[%emt
00:00:09]} 39. Rxd5 {[%emt 00:00:05]} Qc6 40. Qf3 {[%clk 00:00:12]} {[%emt
00:00:03]} Rc8 {[%clk 00:00:06]} {[%emt 00:00:07]} 41. Rd8+ {[%clk 00:00:12]}
Kg7 {[%clk 00:00:06]} 42. Qxc6 {[%clk 00:00:12]} {[%emt 00:00:03]} Rxc6 {[%clk
00:00:06]} 43. R8d7 {[%clk 00:00:12]} Rb6 {[%clk 00:00:06]} {[%emt 00:00:02]}
44. Rxe7 {[%clk 00:00:12]} {[%emt 00:00:02]} Rb1 {[%clk 00:00:06]} 45. Rdd7
{[%clk 00:00:12]} {[%emt 00:00:01]} Rc1 {[%clk 00:00:06]} {[%emt 00:00:02]} 46.
Rxf7+ 1-0

[Event "15e Open International de Quenza"]
[Site "Quenza"]
[Date "2026.07.05"]
[Round "3.9"]
[White "DE SEROUX, Camille"]
[Black "BRODOWSKI, Piotr"]
[Result "0-1"]
[TimeControl "5min+3s"]
[WhiteTitle "WIM"]
[BlackTitle "IM"]
[WhiteFideId "-"]
[BlackFideId "-"]
[WhiteElo "2076"]
[BlackElo "2435"]

1. e4 {[%clk 00:05:03]} {[%emt 00:00:02]} g6 {[%clk 00:05:03]} {[%emt
00:00:02]} 2. d4 {[%clk 00:05:03]} {[%emt 00:00:02]} d6 {[%clk 00:05:00]}
{[%emt 00:00:07]} 3. Nc3 {[%clk 00:05:02]} {[%emt 00:00:04]} a6 {[%clk
00:05:00]} {[%emt 00:00:02]} 4. Bd3 {[%clk 00:04:50]} {[%emt 00:00:14]} Bg7
{[%clk 00:04:57]} {[%emt 00:00:06]} 5. Be3 {[%clk 00:04:37]} {[%emt 00:00:16]}
Nc6 {[%clk 00:04:44]} {[%emt 00:00:18]} 6. Nge2 {[%clk 00:04:27]} {[%emt
00:00:12]} e5 {[%clk 00:04:42]} {[%emt 00:00:05]} 7. d5 {[%clk 00:04:13]}
{[%emt 00:00:17]} Nce7 {[%clk 00:04:42]} {[%emt 00:00:01]} 8. O-O {[%clk
00:03:59]} {[%emt 00:00:17]} Nf6 {[%clk 00:04:42]} {[%emt 00:00:01]} 9. h3
{[%clk 00:03:58]} {[%emt 00:00:04]} O-O {[%clk 00:04:42]} {[%emt 00:00:03]} 10.
f4 {[%clk 00:03:50]} {[%emt 00:00:11]} exf4 {[%clk 00:04:42]} {[%emt 00:00:02]}
11. Bxf4 {[%clk 00:03:40]} {[%emt 00:00:13]} Nd7 {[%clk 00:04:33]} {[%emt
00:00:12]} 12. Qd2 {[%clk 00:03:36]} {[%emt 00:00:07]} Ne5 {[%clk 00:04:33]}
{[%emt 00:00:01]} 13. Bh6 {[%clk 00:03:30]} {[%emt 00:00:09]} Bd7 {[%clk
00:04:22]} {[%emt 00:00:14]} 14. Bxg7 {[%clk 00:03:22]} {[%emt 00:00:10]} Kxg7
{[%clk 00:04:22]} {[%emt 00:00:02]} 15. Rf2 {[%clk 00:03:18]} {[%emt 00:00:06]}
c6 {[%clk 00:03:49]} {[%emt 00:00:37]} 16. dxc6 {[%clk 00:02:59]} {[%emt
00:00:22]} bxc6 {[%clk 00:03:43]} {[%emt 00:00:09]} 17. Raf1 {[%clk 00:02:56]}
{[%emt 00:00:05]} f6 {[%clk 00:03:40]} {[%emt 00:00:06]} 18. Nd4 {[%clk
00:02:30]} {[%emt 00:00:28]} Qb6 {[%clk 00:03:36]} {[%emt 00:00:08]} 19. Be2
{[%clk 00:02:03]} {[%emt 00:00:31]} Rad8 {[%clk 00:03:01]} {[%emt 00:00:37]} 20.
Kh1 {[%clk 00:01:54]} {[%emt 00:00:12]} Ng8 {[%clk 00:02:59]} {[%emt 00:00:05]}
21. Nf3 {[%clk 00:01:46]} {[%emt 00:00:12]} Be6 {[%clk 00:02:53]} {[%emt
00:00:08]} 22. Nd4 {[%clk 00:01:41]} {[%emt 00:00:08]} Bf7 {[%clk 00:02:48]}
{[%emt 00:00:08]} 23. b3 {[%clk 00:01:39]} {[%emt 00:00:06]} a5 {[%clk
00:01:43]} {[%emt 00:01:08]} 24. Na4 {[%clk 00:01:24]} {[%emt 00:00:18]} Qb4
{[%clk 00:01:43]} {[%emt 00:00:02]} 25. c3 {[%clk 00:01:13]} {[%emt 00:00:14]}
Qb7 {[%clk 00:01:43]} 26. Qf4 {[%clk 00:01:05]} {[%emt 00:00:11]} Qe7 {[%clk
00:01:33]} {[%emt 00:00:13]} 27. Qh4 {[%clk 00:00:59]} {[%emt 00:00:10]} d5
{[%clk 00:01:24]} {[%emt 00:00:11]} 28. Qg3 {[%clk 00:00:46]} {[%emt 00:00:15]}
Kh8 {[%clk 00:01:24]} {[%emt 00:00:04]} 29. exd5 {[%clk 00:00:44]} {[%emt
00:00:05]} Bxd5 {[%clk 00:01:24]} {[%emt 00:00:01]} 30. Nf3 {[%clk 00:00:26]}
{[%emt 00:00:21]} Bxf3 {[%clk 00:01:24]} {[%emt 00:00:01]} 31. Bxf3 {[%clk
00:00:26]} {[%emt 00:00:03]} Rd3 {[%clk 00:01:24]} {[%emt 00:00:02]} 32. Qh4
{[%clk 00:00:20]} {[%emt 00:00:09]} Qd6 {[%clk 00:01:04]} {[%emt 00:00:23]} 33.
Be4 {[%clk 00:00:20]} {[%emt 00:00:03]} Rd2 {[%clk 00:01:00]} {[%emt 00:00:06]}
34. c4 {[%clk 00:00:20]} {[%emt 00:00:04]} Rxf2 {[%clk 00:00:59]} {[%emt
00:00:04]} 35. Qxf2 {[%clk 00:00:19]} {[%emt 00:00:04]} f5 {[%clk 00:00:57]}
{[%emt 00:00:05]} 36. Bc2 {[%clk 00:00:17]} {[%emt 00:00:05]} Nf6 {[%clk
00:00:57]} {[%emt 00:00:02]} 37. Rd1 {[%clk 00:00:17]} {[%emt 00:00:02]} Qc7
{[%clk 00:00:57]} {[%emt 00:00:02]} 38. Qc5 {[%clk 00:00:17]} {[%emt 00:00:03]}
Re8 {[%clk 00:00:52]} {[%emt 00:00:08]} 39. Rd6 {[%clk 00:00:13]} {[%emt
00:00:07]} Neg4 {[%clk 00:00:44]} {[%emt 00:00:11]} 40. hxg4 {[%clk 00:00:09]}
{[%emt 00:00:06]} Re1+ {[%clk 00:00:44]} 41. Kh2 {[%clk 00:00:09]} {[%emt
00:00:03]} Re6 {[%clk 00:00:44]} {[%emt 00:00:01]} 0-1

[Event "15e Open International de Quenza"]
[Site "Quenza"]
[Date "2026.07.05"]
[Round "3.10"]
[White "RELANGE, Eloi"]
[Black "ROUBERT, Emile"]
[Result "1-0"]
[TimeControl "5min+3s"]
[WhiteTitle "GM"]
[BlackTitle "-"]
[WhiteFideId "-"]
[BlackFideId "-"]
[WhiteElo "2416"]
[BlackElo "2021"]

1. Nf3 {[%clk 00:05:03]} d5 {[%clk 00:05:03]} {[%emt 00:00:02]} 2. g3 {[%clk
00:05:03]} {[%emt 00:00:03]} c5 {[%clk 00:05:03]} {[%emt 00:00:02]} 3. Bg2
{[%clk 00:05:03]} Nc6 {[%clk 00:05:03]} {[%emt 00:00:02]} 4. d4 {[%clk
00:05:03]} e6 {[%clk 00:04:55]} {[%emt 00:00:11]} 5. O-O {[%clk 00:05:03]}
{[%emt 00:00:02]} Nf6 {[%clk 00:04:55]} 6. c4 {[%clk 00:04:52]} {[%emt
00:00:15]} Be7 {[%clk 00:04:55]} 7. cxd5 {[%clk 00:04:47]} {[%emt 00:00:08]}
exd5 {[%clk 00:04:55]} {[%emt 00:00:02]} 8. Nc3 {[%clk 00:04:33]} {[%emt
00:00:16]} O-O {[%clk 00:04:55]} {[%emt 00:00:02]} 9. Bg5 {[%clk 00:04:33]}
{[%emt 00:00:04]} c4 {[%clk 00:04:55]} {[%emt 00:00:03]} 10. Ne5 {[%clk
00:04:31]} {[%emt 00:00:05]} Be6 {[%clk 00:04:53]} {[%emt 00:00:05]} 11. Nxc6
{[%clk 00:04:29]} {[%emt 00:00:05]} bxc6 {[%clk 00:04:53]} 12. b3 {[%clk
00:04:29]} {[%emt 00:00:02]} h6 {[%clk 00:04:53]} {[%emt 00:00:02]} 13. Bxf6
{[%clk 00:04:24]} {[%emt 00:00:08]} Bxf6 {[%clk 00:04:53]} {[%emt 00:00:01]} 14.
bxc4 {[%clk 00:04:24]} {[%emt 00:00:02]} dxc4 {[%clk 00:04:33]} {[%emt
00:00:23]} 15. e3 {[%clk 00:04:24]} c5 {[%clk 00:04:30]} {[%emt 00:00:06]} 16.
Ne4 {[%clk 00:03:59]} {[%emt 00:00:27]} cxd4 {[%clk 00:03:32]} {[%emt
00:01:01]} 17. Nxf6+ {[%clk 00:03:49]} {[%emt 00:00:13]} gxf6 {[%clk 00:03:32]}
{[%emt 00:00:01]} 18. Bxa8 {[%clk 00:03:28]} {[%emt 00:00:24]} Qxa8 {[%clk
00:03:32]} 19. Qxd4 {[%clk 00:03:22]} {[%emt 00:00:09]} Bh3 {[%clk 00:03:15]}
{[%emt 00:00:20]} 20. e4 {[%clk 00:03:22]} {[%emt 00:00:04]} Bxf1 {[%clk
00:03:15]} {[%emt 00:00:02]} 21. Rxf1 {[%clk 00:03:22]} {[%emt 00:00:02]} Qc6
{[%clk 00:03:15]} {[%emt 00:00:01]} 22. Rc1 {[%clk 00:02:56]} {[%emt 00:00:29]}
Rc8 {[%clk 00:03:15]} {[%emt 00:00:02]} 23. Rc3 {[%clk 00:02:51]} {[%emt
00:00:08]} Kg7 {[%clk 00:02:22]} {[%emt 00:00:57]} 24. Qe3 {[%clk 00:02:32]}
{[%emt 00:00:22]} Re8 {[%clk 00:02:11]} {[%emt 00:00:14]} 25. f3 {[%clk
00:02:32]} {[%emt 00:00:01]} Qb5 {[%clk 00:02:08]} {[%emt 00:00:06]} 26. Qc1
{[%clk 00:02:25]} {[%emt 00:00:09]} Qc5+ {[%clk 00:02:01]} {[%emt 00:00:11]} 27.
Kg2 {[%clk 00:02:25]} {[%emt 00:00:01]} Rc8 {[%clk 00:02:01]} {[%emt 00:00:03]}
28. Qf4 {[%clk 00:02:05]} {[%emt 00:00:22]} Rc6 {[%clk 00:01:35]} {[%emt
00:00:30]} 29. Qc1 {[%clk 00:01:55]} {[%emt 00:00:13]} Qd4 {[%clk 00:01:33]}
{[%emt 00:00:04]} 30. Qc2 {[%clk 00:01:53]} {[%emt 00:00:05]} a5 {[%clk
00:01:33]} {[%emt 00:00:03]} 31. Qc1 {[%clk 00:01:49]} {[%emt 00:00:07]} Rc5
{[%clk 00:01:25]} {[%emt 00:00:11]} 32. Qe3 {[%clk 00:01:34]} {[%emt 00:00:19]}
Qxe3 {[%clk 00:01:00]} {[%emt 00:00:27]} 33. Rxe3 {[%clk 00:01:34]} c3 {[%clk
00:01:00]} 34. Re1 {[%clk 00:01:34]} Rb5 {[%clk 00:01:00]} 35. Rc1 {[%clk
00:01:25]} {[%emt 00:00:13]} Rb2+ {[%clk 00:01:00]} {[%emt 00:00:03]} 36. Kh3
{[%clk 00:01:25]} c2 {[%clk 00:00:55]} {[%emt 00:00:08]} 37. a4 {[%clk
00:01:23]} {[%emt 00:00:04]} Kg6 {[%clk 00:00:47]} {[%emt 00:00:11]} 38. Kg4
{[%clk 00:01:23]} {[%emt 00:00:01]} Rb4 {[%clk 00:00:37]} {[%emt 00:00:14]} 39.
Rxc2 {[%clk 00:01:23]} {[%emt 00:00:02]} f5+ {[%clk 00:00:37]} 40. Kf4 {[%clk
00:01:21]} {[%emt 00:00:04]} fxe4 {[%clk 00:00:37]} {[%emt 00:00:02]} 41. fxe4
{[%clk 00:01:18]} {[%emt 00:00:06]} Rxa4 {[%clk 00:00:37]} 42. Rc6+ {[%clk
00:01:18]} Kg7 {[%clk 00:00:36]} {[%emt 00:00:03]} 43. Ra6 {[%clk 00:01:15]}
{[%emt 00:00:07]} Ra1 {[%clk 00:00:33]} {[%emt 00:00:05]} 44. Kg4 {[%clk
00:01:10]} {[%emt 00:00:08]} a4 {[%clk 00:00:33]} {[%emt 00:00:03]} 45. Kh5
{[%clk 00:01:10]} {[%emt 00:00:02]} a3 {[%clk 00:00:26]} {[%emt 00:00:11]} 46.
Rxh6 {[%clk 00:01:05]} {[%emt 00:00:08]} Re1 {[%clk 00:00:26]} {[%emt
00:00:01]} 47. Ra6 {[%clk 00:01:05]} {[%emt 00:00:02]} Rxe4 {[%clk 00:00:26]}
{[%emt 00:00:02]} 48. Rxa3 {[%clk 00:01:05]} {[%emt 00:00:03]} Re5+ {[%clk
00:00:26]} 49. Kg4 {[%clk 00:01:05]} Kg6 {[%clk 00:00:26]} 50. Ra6+ {[%clk
00:01:05]} {[%emt 00:00:02]} f6 {[%clk 00:00:26]} 51. Ra4 {[%clk 00:01:01]}
{[%emt 00:00:07]} Rc5 {[%clk 00:00:20]} {[%emt 00:00:09]} 52. h4 {[%clk
00:01:01]} {[%emt 00:00:03]} Rb5 {[%clk 00:00:20]} {[%emt 00:00:02]} 53. Kf4
{[%clk 00:01:01]} {[%emt 00:00:01]} Rc5 {[%clk 00:00:17]} {[%emt 00:00:07]} 54.
g4 {[%clk 00:01:01]} {[%emt 00:00:03]} Rb5 {[%clk 00:00:08]} {[%emt 00:00:12]}
55. Kf3 {[%clk 00:00:44]} {[%emt 00:00:19]} Rc5 {[%clk 00:00:08]} {[%emt
00:00:02]} 56. Rf4 {[%clk 00:00:34]} {[%emt 00:00:12]} Ra5 {[%clk 00:00:08]}
{[%emt 00:00:02]} 57. h5+ {[%clk 00:00:34]} {[%emt 00:00:02]} Kg7 {[%clk
00:00:08]} 58. Kg3 {[%clk 00:00:30]} {[%emt 00:00:08]} Ra6 {[%clk 00:00:04]}
{[%emt 00:00:07]} 59. Rb4 {[%clk 00:00:30]} {[%emt 00:00:02]} Rc6 {[%emt
00:00:01]} 60. Kh4 {[%emt 00:00:01]} Rc5 {[%emt 00:00:02]} 1-0